{"text_format":"2","workbook":"xlsx","n_sheets":1,"sheets":["Oprema"],"not_rendered":{"charts":0,"images":16,"macros":0,"external_links":0,"defined_names":0,"comments":0,"pivot_tables":0},"unopened":[],"bounds":{"document_bytes":16777216,"sheet_cells":100000,"run_cost":"one","rows_first":2000,"rows_last":500,"rows_between":2000,"halvings":0,"cell_chars":16384,"cell_head_chars":4096},"cells_cut":0,"cells_raw":0,"read":"whole","date_system":"1900"}

{"sheet":"Oprema","index":0,"n_rows":99,"n_cols":6,"rows_kept":99,"cut":false,"hidden":false,"merged":[[0,0,0,5],[2,0,2,5]]}
[]
["ОПИС НА ПОЗИЦИЈА",null,"Единечна мерка","Количина","Вкупна единечна цена (во денари без ДДВ)","Вкупна цена (во денари без ДДВ)"]
[]
["1. За просториии: училници"]
["Изработка, транспорт и монтажа на работна маса (за деца од 4 до 6год.)  со димензии 80/80/h56cm, горна плотна оплеменета иверка заштитена со АБС трака , на дрвени ногари од од природен материјал фурнирана бука, со заоблени ивици.",null,"парче",3,null,{"$f":"D5*E5","v":0}]
["Изработка, транспорт и монтажа на работна маса за воспитувач/социјален работник со димензии 140/70/h75cm, од оплеменета иверка Е1, да е во согласност со стандардот МКС ЕN 312:2011 или еквивалент на софт, мазна или велветна површина со АBS кант (со заоблени ивици) на метални ногари прашкасто фарбани во боја на база на епоксидни смоли, со фронт помеѓу ногари мин х=40cm.",null,"парче",4,null,0]
["Изработка, транспорт и монтажа на работна маса за деца од училишна возраст со димензии 160/70/h75cm, плотна (со заоблени ивици) изработенa од оплеменета иверка 16мм, заштитени со АБС трака на метална конструкција изработена од профил 25 х 25 х 1,5 мм електростатски фарбан заштитен од корозија.",null,"парче",6,null,0]
["Изработка, транспорт и монтажа на работна маса за деца од училишна возраст со димензии 70/50/h75cm, плотна со заоблени ивици, заштитени со АБС трака, изработенa од оплеменета иверка 16мм, на метална конструкција изработена од профил 25 х 25 х 1,5 мм електростатски фарбан заштитен од корозија.",null,"парче",15,null,0]
["Изработка, транспорт и монтажа на  полици со димензии 45/90/h150cm изработен од оплеменета иверка Е1, во согласност со стандардот МКС EN 312:2011 или еквивалент на софт, велветна површина со ABS кант трака, со растојание помеѓу полици 35cm",null,"парче",4,null,0]
["Изработка, транспорт и монтажа на  полици со димензии 45/90/h150cm изработен од оплеменета иверка Е1, во согласност со стандардот МКС EN 312:2011 или еквивалент на софт, велветна површина со ABS кант трака, со 2 врати,  со 1 oклагија и  врата со брава и клуч.",null,"парче",4,null,0]
["Набавка, транспорт и монтажа на столици (за деца од училишна возраст) со седиште со дим. 37х37х0,8 и наслон со димензии 39х18х0,8  од фурнирана бука анатомски обликовани и заштитени со двокомпонентен безбоен лак на челична конструкција со профил 20х20х1,5 електростатски офарбана заштитена со пластичен чеп.",null,"парче",{"$f":"12+15+12","v":39},null,0]
["Набавка, транспорт и монтажа на столици (за деца од 4-6 години) ногарки изработени од природен материјал фурнирана бука, наслон и седиште анатомски обликовани изработени од природен материјал бука\nдим.на наслон 30/30 h=31cm, боја натур.",null,"парче",12,null,0]
["Набавка, транспорт и монтажа на анатомска работна столица (за воспитувач/социјален работник) , изработена од метална хромирана рамка со анатомски седалка и потпирачка изработени од мрежа и комбинација со кожа, со механизам за регулирање на височина на столот и релакс механизам со можност за фиксирање во работна позиција со фиксни пластични рачки од хромирани елементи. Минимална тежина на корисник до 120кг.",null,"парче",4,null,0]
["Набавка, транспорт и монтажа на ѕидна табла со маркери со држачи за прицврстување на таблата  на ѕид, со мин. дим.180х100см. ",null,"парче",3,null,0]
["Набавка, транспорт и монтажа на  кревет со димензии 90/190/56cm ",null,"парче",1,null,0]
["Набавка танспорт и монтажа на душек со федери за кревет со димензии 85/185/20см ( комплет со постелнина и перница x3)",null,"парче",1,null,0]
["Набавка транспорт и монтажа на гардеробер со димензии 100/50/180cm, со оклагија за закачување на гардероба во едниот дел, во другиот полици, изработен од оплеменета иверка Е1, во согласност со стандардот МКС EN312:2011 или еквивалент на софт велветна површина со АBS кант трака, со 2  врати и секоја врата со брава и клуч.",null,"парче",1,null,0]
["Изработка, транспорт и монтажа на  маса (менза) со димензии 180/60/h75cm, плотна изработенa од оплеменета иверка 16мм, на метална конструкција изработена од профил 25 х 25 х 1,5 мм електростатски фарбан заштитен од корозија заштитени со АБС трака, со заоблени ивици и прицврстена за ѕид, и потпирачка за нозе.",null,"парче",2,null,0]
["Набавка, транспорт и монтажа на кружни столчиња (менза) - Ф 40cm, со висина на седиште 45cm, со потпирачки за нозе",null,"парче",6,null,0]
["Набавка, транспорт и монтажа на правоаголни табуретки (влез) - 43/43cm, со висина на седиште 38 завршно изработени од еко кожа и метални ногари 2см (боја светло сина и жолта)",null,"парче",3,null,0]
["Набавка, транспорт и монтажа на метални закачалки (5*2) од oплеменета иверка кантирана со АБС трака со должина од 100cm/h100cm  (за монтажа на ѕид) \n",null,"парче",3,null,0]
[" Набавка, транспорт и монтажа на канцелариска закачалка со метална конструкција и држач за чадори (интегриран)\n",null,"парче",2,null,0]
["Набавка, транспорт и монтажа на метални закачалки (5*2)\n",null,"парче",2,null,0]
["Метален држач за чадори перфориран",null,"парче",2,null,0]
["Полица двојна h=25cm/100/25 поставена со 14а",null,"парче",3,null,0]
["Изработка, транспорт и монтажа на фиокар со димензии 40/60/58cm, со подвижни ногари, изработен од оплеменета иверка Е1, во согласност со стандардот МКС EN 312:2011 или еквивалент на софт, велветна површина со ABS кант трака. Фиоките се со метал бокс за затварање и една брава со клуч. Метални рачки со димензии 200мм.",null,"парче",5,null,0]
["Набавка, транспорт и монтажа на метални гардероби со клупа/табуретка, поделена на 6 дела со 6 вратички, секоја врата со клуч и брава",null,"парче",3,null,0]
["Набавка, транспорт и монтажа на и  со димензии 80/80/h75cm, горна плотна оплеменета иверка заштитена со АБС трака , на дрвени ногари од од природен материјал фурнирана бука, со заоблени ивици.",null,"парче",3,null,0]
["TOTAL VALUE",{"$nulls":4},{"$f":"SUM(F5:F28)","v":0}]
["2. За економски простории - кујна"]
[]
["Набавка, транспорт и монтажа на дистрибутивна кујна по мерка (триредна 230/440/120cm) опрема:"]
["иноксна неутрална маса (140) со позадина и една полица и фиокар",null,"парче",1,null,{"$f":"D33*E33","v":0}]
["пулт-неутрална маса (140)",null,"парче",1,null,0]
["неутрална маса (120)",null,"парче",1,null,0]
["плакарче 40/h 180cm со шанк врата 60 cm (по цртеж)",null,"парче",2,null,0]
["висечки елементи (140+120 со цедалка)",null,"парче",1,null,0]
["инокс мијалник за садови 1/2 (120см)",null,"парче",1,null,0]
["сервисна количка",null,"парче",1,null,0]
["лавабо",null,"парче",1,null,0]
["TOTAL VALUE",{"$nulls":4},{"$f":"SUM(F33:F40)","v":0}]
["3. За економски простории - перална"]
["Набавка, транспорт и монтажа на опрема за перална:"]
["Плакар (полици) од оплеменета иверка на метални ногари, софт, велветна површина со АBS кант со димензии 60/215/h220cm ",null,"парче",1,null,{"$f":"D44*E44","v":0}]
["полица врз машините со димензии 140/70 см",null,"парче",1,null,{"$f":"D45*E45","v":0}]
["полица врз машините со димензии 140/30см",null,"парче",1,null,{"$f":"D46*E46","v":0}]
["TOTAL VALUE",{"$nulls":4},{"$f":"SUM(F44:F46)","v":0}]
["4. Друга опрема"]
["Алуминиумски брисачи за обувки 90/120см",null,"парче",2,null,{"$f":"D49*E49","v":0}]
["Кутии со капак за валкан веш ",null,"парче",2,null,0]
["Иноксни канти за отпадоци 30л.",null,"парче",4,null,0]
["Венецијанери",null,"m2",5,null,0]
["држачи за пешкири",null,"парче",3,null,0]
["држачи за тоалетна хартија (со клуч)",null,"парче",5,null,0]
["држачи за роло хартија (со клуч)",null,"парче",5,null,0]
["држачи за течен сапун (со клуч)",null,"парче",7,null,0]
["огледала Ф50 и едно правоаголно-закосено",null,"парче",5,null,0]
["TOTAL VALUE",{"$nulls":4},{"$f":"SUM(F49:F57)","v":0}]
["5. Ситен инвентар"]
["Шерпа РФ 2,5лит.",null,"парче",2,null,{"$f":"D60*E60","v":0}]
["Тава - тигањ Ф 26см рф",null,"парче",2,null,0]
["Кутлача РФ 0,250",null,"парче",6,null,0]
["Кутлача РФ 1,000",null,"парче",1,null,0]
["Лажица француска РФ",null,"парче",1,null,0]
["Вилушка за печење РФ",null,"парче",1,null,0]
["Даска за сечење 50/30см ",null,"парче",2,null,0]
["Лажици дрвени ",null,"парче",3,null,0]
["Нож саламар",null,"парче",2,null,0]
["Нож за зеленчук",null,"парче",2,null,0]
["Жица за матење мала",null,"парче",2,null,0]
["Миксер со чаша мин. 450W",null,"парче",1,null,0]
["Казанче за матење мало 27см.рф",null,"парче",1,null,0]
["ренде плехано рф",null,"парче",1,null,0]
["Цедилка жичена 18см.",null,"парче",1,null,0]
["Тепсија бр.28",null,"парче",1,null,0]
["Корпа плетена за леб росфрај",null,"парче",6,null,0]
["Апотека рачна",null,"парче",1,null,0]
["Канта Inox 30 л со капак",null,"парче",1,null,0]
["Kанта со пета лимена 10л.",null,"парче",1,null,0]
["Вага мала кујнска",null,"парче",1,null,0]
["Врзоглавки бели ",null,"парче",6,null,0]
["Крпи за кујна",null,"парче",10,null,0]
["Кецели гуменирани",null,"парче",2,null,0]
["Бокал РФ мин 1,5 лит.",null,"парче",6,null,0]
["Шоља за млеко РФ 0,300,18/10",null,"парче",30,null,0]
["Тембало 14,5 см. РФ,18/10",null,"парче",30,null,0]
["Чинија длабока 21 см. РФ 18/10",null,"парче",30,null,0]
["Чинија плитка 21 см. РФ 18/10",null,"парче",30,null,0]
["Лажичка за чај РФ 18/10",null,"парче",30,null,0]
["Лажица РФ 18/10",null,"парче",30,null,0]
["Вилушка РФ 18/10",null,"парче",30,null,0]
["Послужавник метален",null,"парче",20,null,0]
["TOTAL VALUE",{"$nulls":4},{"$f":"SUM(F60:F92)","v":0}]
["6. Разни работи"]
["Прва помош",null,null,1,null,{"$f":"D95*E95","v":0}]
["ПП Апарати",null,null,3,null,{"$f":"D96*E96","v":0}]
["TOTAL VALUE",{"$nulls":4},{"$f":"SUM(F95:F96)","v":0}]
[]
["TOTAL",{"$nulls":4},{"$f":"F29+F41+F47+F58+F93+F97","v":0}]